bitfinex/quotes_SOLUSD_20241110
["timestamp","ask_amount","ask_price","bid_price","bid_amount"]
[1731272596190,36.81218482,202.13,202.05,36.81218482]
[1731272596786,36.81218482,202.11,202.03,36.81218482]
[1731272596993,36.81218482,202.12,202.04,36.81218482]
[1731272597310,36.81218482,202.11,202.04,36.81218482]
[1731272597608,36.81218482,202.12,202.05,36.81218482]
[1731272597793,36.81218482,202.12,202.02,17.325]
[1731272597996,36.81218482,202.12,202.05,36.81218482]
[1731272598200,41.75948482,202.13,202.05,36.81218482]
[1731272598393,36.81218482,202.12,202.02,17.325]
[1731272598593,36.81218482,202.14,202.06,36.81218482]
[1731272598793,47.86476802,202.22,202.09,6.3684]
[1731272598998,47.86476802,202.22,202.15,36.81218482]
[1731272599309,36.81218482,202.2,202.09,6.3684]
[1731272599520,36.81218482,202.19,202.12,36.81218482]
[1731272599815,36.81218482,202.19,202.11,36.81218482]
[1731272600110,36.81218482,202.17,202.09,43.18058482]
[1731272600310,36.81218482,202.18,202.11,36.81218482]
[1731272600491,11.0525832,202.22,202.15,36.81218482]
[1731272600691,47.86476802,202.22,202.15,4.9467]
[1731272600902,36.81218482,202.19,202.13,12.3679]
[1731272601414,36.81218482,202.17,202.1,41.76008482]
[1731272601595,36.81218482,202.17,202.09,36.81218482]
[1731272601794,36.81218482,202.14,202.08,12.3712]
[1731272601991,36.91218482,202.18,202.08,12.3712]
[1731272602190,4.9453,202.21,202.08,17.3197]
[1731272602404,47.86476802,202.22,202.14,36.81218482]
[1731272602592,36.81218482,202.2,202.08,12.3712]
[1731272602787,41.75798482,202.2,202.12,36.81218482]
[1731272602999,41.75798482,202.2,202.13,36.81218482]
[1731272603213,41.75798482,202.2,202.08,12.3712]
[1731272603214,4.9458,202.2,202.14,36.81218482]
[1731272603619,36.81218482,202.2,202.13,36.81218482]
[1731272603805,47.86476802,202.22,202.15,36.81218482]
[1731272604001,36.81218482,202.21,202.14,36.81218482]
[1731272604309,36.81218482,202.2,202.13,36.81218482]
[1731272604515,36.81218482,202.18,202.05,17.3223]
[1731272604710,36.81218482,202.17,202.1,36.81218482]
[1731272604898,36.81218482,202.16,202.08,36.81218482]
[1731272605104,36.91218482,202.14,202.07,36.81218482]
[1731272605597,36.91218482,202.12,202.05,36.81218482]
[1731272605796,4.9472,202.14,202.01,4.95]
[1731272605996,41.85938482,202.14,202.07,36.81218482]
[1731272606214,36.81218482,202.16,202.09,36.81218482]
[1731272606401,21.5558,202.17,202.01,17.4256]
[1731272606402,4.9464,202.17,202.01,17.4256]
[1731272606921,36.81218482,202.13,202.06,36.81218482]
[1731272607813,4.9475,202.12,202.02,4.9499]
[1731272608002,4.9475,202.12,202.06,36.81218482]
[1731272608198,36.81218482,202.13,202.06,36.81218482]
[1731272608415,36.81218482,202.13,202.05,36.81218482]
[1731272608917,36.81218482,202.13,202.02,17.3249]
[1731272608918,36.81218482,202.11,202.04,36.81218482]
[1731272609928,4.948,202.1,202.01,4.9502]
[1731272610108,4.948,202.1,202.04,36.81218482]
[1731272610734,4.948,202.1,202.07,1.0]
[1731272610908,41.76018482,202.1,202.07,1.0]
[1731272611106,4.948,202.1,202.07,1.0]
[1731272611306,36.81218482,202.08,202.07,1.0]
[1731272611612,41.76018482,202.1,202.07,1.0]
[1731272612318,0.22549,202.09,202.07,1.0]
[1731272612514,0.32549,202.09,202.07,1.0]
[1731272612720,37.03767482,202.09,202.07,1.0]
[1731272612915,36.81218482,202.08,202.07,1.0]
[1731272613337,56.91218482,202.08,202.07,1.0]
[1731272613516,48.23513627,202.08,202.07,1.0]
[1731272613841,48.13513627,202.08,202.07,1.0]
[1731272614135,69.64324,202.0,201.89,150.0]
[1731272614319,69.64324,202.0,201.89,154.953]
[1731272614723,69.64324,202.0,201.89,167.3359]
[1731272615235,36.81218482,201.99,201.92,36.81218482]
[1731272615941,41.76298482,201.99,201.92,36.81218482]
[1731272616731,106.45542482,202.0,201.93,36.81218482]
[1731272616936,36.81218482,201.99,201.91,36.81218482]
[1731272617329,36.81218482,201.97,201.92,23.776884]
[1731272617537,36.81218482,201.97,201.91,23.776884]
[1731272617720,36.81218482,201.96,201.91,23.776884]
[1731272617924,36.81218482,201.99,201.92,36.81218482]
[1731272618315,69.64324,202.0,201.91,41.111084]
[1731272618316,36.81218482,201.96,201.91,41.111084]
[1731272618521,36.81218482,201.95,201.89,154.953]
[1731272618835,36.81218482,201.96,201.89,154.953]
[1731272619033,36.81218482,201.96,201.89,191.76518482]
[1731272619236,36.81218482,201.96,201.89,186.81218482]
[1731272619433,36.81218482,201.95,201.89,150.0]
[1731272619740,36.81218482,201.9,201.89,150.0]
[1731272619932,69.64324,202.0,201.89,150.0]
[1731272620117,111.40592482,202.0,201.91,36.81218482]
[1731272620324,36.81218482,201.98,201.91,36.81218482]
[1731272620529,36.81218482,201.96,201.9,6.264]
[1731272621038,74.69374,202.0,201.89,150.0]
[1731272621039,36.81218482,201.94,201.89,150.0]
[1731272621217,36.81218482,201.96,201.89,150.0]
[1731272621419,11.24047487,201.99,201.91,36.81218482]
[1731272621619,11.24047487,201.99,201.95,36.81218482]
[1731272621819,11.24047487,201.99,201.96,17.33]
[1731272622042,11.24047487,201.99,201.97,36.81218482]
[1731272622541,69.64324,202.0,201.99,23.976884]
[1731272622844,52.97664,202.0,201.99,60.78906882]
[1731272623044,52.97664,202.0,201.99,23.976884]
[1731272623229,52.97664,202.0,201.99,60.78906882]
[1731272623428,46.31004,202.0,201.99,97.60125364]
[1731272623632,11.08635934,202.12,202.04,0.1]
[1731272623822,11.08635934,202.12,202.1,36.81218482]
[1731272624137,11.08635934,202.12,202.05,12.3726]
[1731272624349,11.08635934,202.12,202.0,4.9503]
[1731272624350,16.03385934,202.12,202.0,4.9503]
[1731272624529,16.03385934,202.12,201.99,17.327]
[1731272624928,0.1,202.1,201.96,4.9513]
[1731272625135,36.81218482,202.03,201.93,12.3799]
[1731272625348,36.81218482,202.02,201.94,36.81218482]
[1731272625747,36.81218482,202.01,201.94,36.81218482]
[1731272625941,41.76258482,202.01,201.94,36.81218482]
[1731272626453,36.81218482,201.99,201.89,150.0]
[1731272626652,36.81218482,201.9,201.89,150.0]
[1731272626951,43.30818482,201.98,201.89,186.81218482]
[1731272627251,15.7481,202.0,201.9,4.9529]
[1731272627450,15.7481,202.0,201.89,151.13215824]
[1731272627659,0.1,201.99,201.89,151.13215824]
[1731272627856,15.8481,202.0,201.89,151.13215824]
[1731272627857,20.1,201.94,201.9,1.13210217]
[1731272628045,4.9522,201.93,201.9,1.13210217]
[1731272628245,36.81218482,201.91,201.9,1.13210217]
[1731272628834,36.81218482,201.91,201.89,150.0]
[1731272629947,4.9529,201.9,201.89,150.0]
[1731272630750,61.86508482,201.9,201.89,100.0002]
[1731272630956,61.86508482,201.9,201.89,61.3691]
[1731272631155,25.0529,201.9,201.89,61.3691]
[1731272631457,61.76508482,201.9,201.89,61.3691]
[1731272631635,61.86508482,201.9,201.89,61.3691]
[1731272632865,0.1,201.79,201.78,15.61007105]
[1731272633079,20.0,201.79,201.78,10.55938747]
[1731272633253,0.1,201.81,201.78,10.55938747]
[1731272633459,0.1,201.79,201.78,10.55938747]
[1731272633678,0.2,201.79,201.78,10.55938747]
[1731272634065,0.2,201.77,201.76,2.39739]
[1731272634364,0.2,201.77,201.59,16.13119]
[1731272634365,20.0,201.76,201.59,16.13119]
[1731272634568,37.1846967,201.68,201.6,37.1846967]
[1731272635368,37.1846967,201.66,201.59,16.13119]
[1731272635562,37.1846967,201.64,201.59,16.13119]
[1731272635872,37.1846967,201.66,201.59,16.13119]
[1731272636076,42.1429967,201.68,201.6,37.1846967]
[1731272636264,4.9583,201.68,201.62,37.1846967]
[1731272636468,4.9583,201.68,201.59,16.13119]
[1731272636469,42.1429967,201.68,201.6,37.1846967]
[1731272636670,61.9686757,201.7,201.62,37.1846967]
[1731272636864,42.1426967,201.7,201.62,37.1846967]
[1731272637386,37.1846967,201.68,201.6,37.1846967]
[1731272637565,37.1846967,201.62,201.54,37.1846967]
[1731272637977,37.1846967,201.62,201.52,4.9622]
[1731272638176,42.1445967,201.62,201.55,37.1846967]
[1731272638667,37.1846967,201.64,201.57,37.1846967]
[1731272638863,37.1846967,201.62,201.51,17.3688]
[1731272639078,37.1846967,201.62,201.52,37.1846967]
[1731272639980,37.1846967,201.64,201.56,37.1846967]
[1731272640367,37.1846967,201.66,201.58,37.1846967]
[1731272640572,4.9581,201.69,201.63,37.1846967]
[1731272640573,37.1846967,201.69,201.63,37.1846967]
[1731272640885,37.1846967,201.69,201.61,37.1846967]
[1731272641183,37.1846967,201.69,201.62,23.776884]
[1731272641389,37.1846967,201.69,201.63,37.1846967]
[1731272641580,37.1846967,201.71,201.64,23.776884]
[1731272642387,37.1846967,201.69,201.61,23.776884]
[1731272643185,37.1846967,201.69,201.63,23.776884]
[1731272643398,37.1846967,201.73,201.66,37.1846967]
[1731272643567,37.1846967,201.76,201.69,60.9615807]
[1731272643775,37.1846967,201.76,201.7,23.776884]
[1731272644090,37.1846967,201.74,201.67,37.1846967]
[1731272644268,37.1846967,201.76,201.69,37.1846967]
[1731272644472,57.0035567,201.78,201.7,37.1846967]
[1731272644669,37.1846967,201.82,201.74,37.1846967]
[1731272644871,37.1846967,201.83,201.77,23.776884]
[1731272645179,37.1846967,201.88,201.81,23.776884]
[1731272645479,37.1846967,201.9,201.83,23.776884]
[1731272645684,37.1846967,201.88,201.83,23.776884]
[1731272645867,37.1846967,201.84,201.76,15.7809]
[1731272646067,37.1846967,201.83,201.76,15.7809]
[1731272646288,37.1846967,201.85,201.78,4.9558]
[1731272646474,37.1846967,201.87,201.81,37.1846967]
[1731272646668,37.1846967,201.85,201.77,37.1846967]
[1731272646868,37.1846967,201.78,201.7,4.9578]
[1731272647484,36.6846967,201.78,201.7,17.3524]
[1731272647688,37.1846967,201.81,201.73,37.1846967]
[1731272647872,37.1846967,201.79,201.71,37.1846967]
[1731272648285,37.1846967,201.81,201.73,37.1846967]
[1731272648492,0.1,201.85,201.71,23.776884]
[1731272648493,37.1846967,201.79,201.71,60.9615807]
[1731272648679,37.1846967,201.77,201.71,23.776884]
[1731272648878,37.1846967,201.77,201.7,12.3946]
[1731272649072,37.1846967,201.75,201.69,15.7809]
[1731272649687,37.1846967,201.77,201.69,52.9655967]
[1731272650374,37.1846967,201.75,201.69,15.7809]
[1731272650577,37.1846967,201.73,201.7,23.776884]
[1731272650995,37.1846967,201.75,201.7,23.776884]
[1731272651241,42.1413967,201.75,201.68,23.776884]
[1731272651902,37.1846967,201.77,201.69,37.1846967]
[1731272652386,4.9557,201.79,201.68,23.776884]
[1731272652387,37.1846967,201.75,201.68,23.776884]
[1731272652896,42.1413967,201.75,201.68,23.776884]
[1731272653074,51.9746967,201.9,201.75,23.776884]
[1731272653075,42.1392967,201.83,201.75,23.776884]
[1731272653278,37.1846967,201.83,201.77,23.776884]
[1731272653687,37.1846967,201.83,201.75,23.776884]
[1731272653885,37.1846967,201.85,201.77,37.1846967]
[1731272654202,37.1846967,201.85,201.78,23.776884]
[1731272654699,37.1846967,201.87,201.8,23.776884]
[1731272654902,12.4795,201.95,201.8,23.776884]
[1731272654903,37.1846967,201.9,201.84,23.776884]
[1731272655109,4.9525,201.92,201.84,23.776884]
[1731272655314,48.46143872,201.89,201.82,23.776884]
[1731272655484,48.46143872,201.89,201.8,4.9553]
[1731272655485,36.6846967,201.88,201.8,11.3885]
[1731272655685,11.27674202,201.89,201.81,60.9615807]
[1731272655888,11.27674202,201.89,201.83,37.1846967]
[1731272656209,11.27674202,201.89,201.87,37.1846967]
[1731272656409,37.1846967,201.95,201.88,60.9615807]
[1731272656588,0.1,201.95,201.8,16.3439]
[1731272656798,4.9515,201.96,201.8,16.3439]
[1731272656799,4.9519,201.94,201.8,11.3885]
[1731272657603,37.1846967,201.94,201.86,37.1846967]
[1731272657814,27.1410386,201.8,201.78,29.7352]
[1731272657988,0.1,201.92,201.78,29.7352]
[1731272657989,0.1,201.89,201.8,23.776884]
[1731272658184,0.1,201.89,201.86,23.776884]
[1731272658739,0.1,201.83,201.77,15.646]
[1731272659011,0.1,201.83,201.78,37.1846967]
[1731272659304,0.1,201.82,201.78,37.1846967]
[1731272659510,0.1,201.8,201.77,15.646]
[1731272660213,0.1,201.8,201.73,37.1846967]
[1731272660214,0.1,201.76,201.73,37.1846967]
[1731272660512,0.1,201.78,201.75,37.1846967]
[1731272660808,0.1,201.8,201.75,42.1410967]
[1731272660990,0.1,201.82,201.77,37.1846967]
[1731272661184,0.1,201.8,201.77,37.1846967]
[1731272661391,37.1846967,201.9,201.7,52.8306967]
[1731272661392,0.1,201.78,201.73,37.1846967]
[1731272661686,0.1,201.73,201.72,23.776884]
[1731272661887,0.1,201.73,201.7,15.646]
[1731272662093,0.1,201.76,201.7,16.77922473]
[1731272662289,0.1,201.71,201.7,16.77922473]
[1731272662519,0.1,201.73,201.7,15.646]
[1731272662822,0.1,201.71,201.7,15.646]
[1731272663002,0.1,201.73,201.7,15.646]
[1731272663204,0.1,201.75,201.7,20.6036]
[1731272663523,0.1,201.75,201.71,23.776884]
[1731272663697,0.1,201.72,201.7,32.9982]
[1731272663899,0.1,201.7,201.66,4.9587]
[1731272664213,0.1,201.75,201.69,37.1846967]
[1731272664613,48.59740288,201.76,201.66,4.9587]
[1731272664614,11.31270618,201.76,201.74,37.1846967]
[1731272664804,11.31270618,201.76,201.75,4.9566]
[1731272664997,0.1,201.79,201.76,23.776884]
[1731272665199,0.1,201.75,201.72,37.1846967]
[1731272665395,0.1,201.77,201.75,23.776884]
[1731272665615,0.1,201.78,201.75,23.776884]
[1731272666198,10.8119336,201.85,201.7,12.3943]
[1731272666199,0.1,201.82,201.77,23.776884]
[1731272666403,0.1,201.79,201.77,23.776884]
[1731272666806,0.1,201.76,201.73,23.776884]
[1731272667620,0.1,201.72,201.67,37.1846967]
[1731272667800,0.1,201.74,201.69,37.1846967]
[1731272668006,0.1,201.71,201.69,37.1846967]
[1731272668208,10.71669319,201.79,201.65,12.3972]
[1731272668209,0.1,201.7,201.67,37.1846967]
[1731272668527,0.1,201.7,201.65,49.5818967]
[1731272669019,0.1,201.7,201.61,42.1445967]
[1731272669020,0.1,201.66,201.61,42.1445967]
[1731272669219,0.1,201.7,201.62,20.6056]
[1731272669430,0.1,201.68,201.63,37.1846967]
[1731272669724,0.1,201.66,201.59,37.1846967]
[1731272669901,4.9579,201.7,201.61,37.1846967]
[1731272669902,0.1,201.68,201.61,37.1846967]
[1731272670112,37.2846967,201.68,201.61,37.1846967]
[1731272670445,37.1846967,201.63,201.54,12.3652]
[1731272670735,34.7846967,201.61,201.53,37.1846967]
[1731272671313,34.7846967,201.61,201.54,1.13412438]
[1731272671525,37.1846967,201.59,201.54,1.13412438]
[1731272671725,37.1846967,201.55,201.54,1.13412438]
[1731272671926,37.1846967,201.57,201.54,1.13412438]
[1731272673032,37.1846967,201.59,201.54,1.13412438]
[1731272673635,37.1846967,201.57,201.54,1.13412438]
[1731272673933,48.72197914,201.59,201.54,1.13412438]
[1731272674114,37.1846967,201.57,201.54,1.13412438]
[1731272674310,48.72197914,201.59,201.54,1.13412438]
[1731272674625,57.1846967,201.55,201.54,1.13412438]
[1731272675112,49.11708822,201.55,201.46,37.1846967]
[1731272675308,37.1846967,201.55,201.48,37.1846967]
[1731272675808,37.1846967,201.55,201.48,42.1477967]
[1731272676223,48.72251034,201.55,201.48,37.1846967]
[1731272676632,48.72251034,201.55,201.48,49.5927967]
[1731272676831,48.72251034,201.55,201.5,37.1846967]
[1731272676832,11.53781364,201.55,201.5,37.1846967]
[1731272677040,11.53781364,201.55,201.51,23.776884]
[1731272677215,48.72251034,201.55,201.49,23.776884]
[1731272677627,48.72251034,201.55,201.48,12.4081]
[1731272678224,37.1846967,201.53,201.44,42.1486967]
[1731272678621,37.1846967,201.51,201.44,42.1486967]
[1731272679228,37.1846967,201.51,201.44,54.5592967]
[1731272679423,16.49941364,201.55,201.44,10.96966018]
[1731272679629,16.49941364,201.55,201.49,37.1846967]
[1731272679630,11.53781364,201.55,201.49,37.1846967]
[1731272679830,11.53781364,201.55,201.48,37.1846967]
[1731272680142,11.53781364,201.55,201.49,23.776884]
[1731272680341,37.1846967,201.54,201.47,23.776884]
[1731272681147,37.1846967,201.51,201.45,23.776884]
[1731272681453,37.1846967,201.51,201.43,37.1846967]
[1731272681819,42.1473967,201.51,201.43,37.1846967]
[1731272682021,37.1846967,201.51,201.44,37.1846967]
[1731272682548,37.1846967,201.51,201.44,23.776884]
[1731272682852,37.1846967,201.5,201.43,54.5601967]
[1731272683145,37.1846967,201.49,201.43,12.4112]
[1731272683333,42.1474967,201.5,201.43,12.4112]
[1731272683932,37.1846967,201.5,201.43,54.5603967]
[1731272684238,37.1846967,201.5,201.44,23.776884]
[1731272684437,37.1846967,201.49,201.44,23.776884]
[1731272684626,37.1846967,201.47,201.39,52.8306967]
[1731272685134,4.9622,201.52,201.4,4.965]
[1731272685335,37.1846967,201.47,201.4,42.1496967]
[1731272685520,37.1846967,201.44,201.39,20.6112]
[1731272685720,37.1846967,201.43,201.37,4.9658]
[1731272685921,37.1846967,201.44,201.37,42.1504967]
[1731272686137,37.1846967,201.45,201.38,37.1846967]
[1731272686440,37.1846967,201.44,201.36,17.3817]
[1731272686637,37.1846967,201.43,201.36,54.5663967]
[1731272686847,37.1846967,201.45,201.38,37.1846967]
[1731272687038,37.1846967,201.47,201.4,37.1846967]
[1731272687338,37.1846967,201.49,201.41,37.1846967]
[1731272687644,4.9627,201.51,201.4,12.4128]
[1731272687645,37.1846967,201.46,201.4,12.4128]
[1731272688127,4.9627,201.51,201.36,4.9662]
[1731272688128,37.1846967,201.44,201.37,37.1846967]
[1731272688336,37.1846967,201.43,201.36,54.5663967]
[1731272688528,37.1846967,201.44,201.36,54.5663967]
[1731272688754,37.1846967,201.45,201.37,37.1846967]
[1731272689038,37.1846967,201.47,201.4,37.1846967]
[1731272689244,37.1846967,201.5,201.42,34.6846967]
[1731272689558,18.5599,201.61,201.46,37.1846967]
[1731272689559,37.1846967,201.54,201.46,37.1846967]
[1731272689839,37.1846967,201.6,201.47,23.776884]
[1731272689840,37.1846967,201.53,201.47,23.776884]
[1731272690052,37.1846967,201.5,201.44,23.776884]
[1731272690344,17.4619,201.59,201.42,23.776884]
[1731272690345,37.1846967,201.46,201.42,23.776884]
[1731272690541,37.1846967,201.46,201.4,23.776884]
[1731272690722,37.1846967,201.46,201.39,37.1846967]
[1731272691140,37.1846967,201.45,201.38,49.5989967]
[1731272691338,37.1846967,201.44,201.37,37.1846967]
[1731272691641,42.1486967,201.45,201.37,37.1846967]
[1731272691836,37.1846967,201.43,201.35,37.1846967]
[1731272692236,37.1846967,201.43,201.36,37.1846967]
[1731272692437,37.1846967,201.44,201.32,6.2137]
[1731272692757,42.1489967,201.44,201.37,37.1846967]
[1731272693044,42.1489967,201.44,201.35,12.4161]
[1731272693045,37.1846967,201.43,201.36,37.1846967]
[1731272693245,42.1489967,201.44,201.37,37.1846967]
[1731272693555,37.1846967,201.42,201.35,49.6007967]
[1731272693852,4.9643,201.44,201.35,49.6007967]
[1731272693853,37.1846967,201.43,201.35,49.6007967]
[1731272694349,49.5921967,201.5,201.33,4.9669]
[1731272694350,42.1496967,201.41,201.34,37.1846967]
[1731272695046,37.1846967,201.42,201.35,37.1846967]
[1731272695557,42.1495967,201.42,201.36,23.776884]
[1731272696052,4.9649,201.42,201.35,37.1846967]
[1731272696954,37.1846967,201.43,201.36,37.1846967]
[1731272697125,37.1846967,201.45,201.38,37.1846967]
[1731272697332,37.1846967,201.45,201.37,23.776884]
[1731272697333,42.1481967,201.47,201.41,23.776884]
[1731272697552,37.1846967,201.46,201.39,60.9615807]
[1731272698447,37.1846967,201.48,201.43,23.776884]
[1731272698656,42.1479967,201.48,201.41,23.776884]
[1731272700249,37.1846967,201.42,201.35,12.4155]
[1731272700452,37.1846967,201.43,201.36,37.1846967]
[1731272700755,37.1846967,201.44,201.36,37.1846967]
[1731272700965,37.1846967,201.43,201.36,37.1846967]
[1731272701257,37.1846967,201.44,201.37,37.1846967]
[1731272701645,37.1846967,201.43,201.36,37.1846967]
[1731272702037,37.1846967,201.42,201.35,54.5665967]
[1731272702253,37.1846967,201.42,201.36,37.1846967]
[1731272702451,4.9645,201.43,201.37,23.776884]
[1731272702655,42.1485967,201.46,201.39,60.9615807]
[1731272702835,37.1846967,201.51,201.44,60.9615807]
[1731272703036,37.1846967,201.53,201.47,23.776884]
[1731272703259,19.0273,201.59,201.48,37.1846967]
[1731272703260,4.9612,201.57,201.48,37.1846967]
[1731272703560,6.5258,201.66,201.49,23.776884]
[1731272703732,6.5258,201.71,201.5,0.1]
[1731272703937,6.5258,201.71,201.52,23.776884]
[1731272704253,6.5258,201.71,201.56,15.8392]
[1731272704457,6.5258,201.77,201.57,23.976884]
[1731272704637,48.55923483,201.72,201.66,23.776884]
[1731272704836,11.37453813,201.72,201.66,60.9615807]
[1731272705038,48.55923483,201.72,201.66,23.776884]
[1731272705255,11.37453813,201.72,201.67,37.1846967]
[1731272705439,11.37453813,201.72,201.71,60.9615807]
[1731272705640,49.6675967,201.9,201.72,23.776884]
[1731272705641,37.1846967,201.8,201.72,23.776884]
[1731272705969,11.54480003,201.89,201.73,0.1]
[1731272706260,16.49820003,201.89,201.74,23.776884]
[1731272706439,11.54480003,201.89,201.74,23.776884]
[1731272706754,8.62574046,201.98,201.74,23.776884]
[1731272706755,0.84699076,201.98,201.84,0.1]
[1731272706957,37.1846967,202.03,201.96,37.1846967]
[1731272707152,37.1846967,202.05,201.97,37.1846967]
[1731272707354,37.1846967,202.06,201.99,37.1846967]
[1731272707575,37.1846967,202.07,202.0,23.776884]
[1731272707746,37.1846967,202.03,202.0,23.776884]
[1731272707946,0.1,202.08,201.9,15.8392]
[1731272708143,10.44544756,202.07,201.91,23.776884]
[1731272708345,10.44544756,202.07,201.79,7.77400073]
[1731272708346,0.1,202.03,201.8,37.2846967]
[1731272708573,0.1,202.03,201.81,23.776884]
[1731272708868,0.1,201.98,201.81,12.3878]
[1731272709169,37.1846967,201.83,201.75,42.1410967]
[1731272709371,37.1846967,201.84,201.75,37.1846967]
[1731272709587,37.1846967,201.82,201.74,49.5764967]
[1731272709759,37.1846967,201.78,201.7,15.8392]
[1731272709954,20.0,201.89,201.7,15.8392]
[1731272710275,37.1846967,201.79,201.71,37.1846967]
[1731272710453,37.1846967,201.83,201.75,37.1846967]
[1731272710655,20.0,201.89,201.7,53.0238967]
[1731272710656,37.1846967,201.85,201.77,37.1846967]
[1731272711161,37.1846967,201.83,201.75,37.1846967]
[1731272711468,37.1846967,201.85,201.77,37.1846967]
[1731272711675,37.1846967,201.89,201.81,37.1846967]
[1731272712065,37.1846967,201.82,201.74,37.1846967]
[1731272712265,37.1846967,201.82,201.76,23.776884]
[1731272712480,37.1846967,201.78,201.71,12.394]
[1731272712655,37.1846967,201.78,201.72,1.13311237]
[1731272712850,37.1846967,201.84,201.76,37.1846967]
[1731272713061,17.3292,201.97,201.73,0.1]
[1731272713274,10.75336825,201.96,201.77,0.2]
[1731272713450,5.0512,201.97,201.72,0.2]
[1731272713658,4.9512,201.97,201.77,23.776884]
[1731272714153,37.1846967,201.91,201.83,37.1846967]
[1731272714360,37.1846967,201.97,201.88,37.1846967]
[1731272714675,37.1846967,201.98,201.9,37.1846967]
[1731272714858,42.1355967,201.99,201.91,37.1846967]
[1731272715066,37.1846967,202.01,201.93,37.1846967]
[1731272715275,4.9497,202.04,201.9,37.1846967]
[1731272715472,4.9497,202.04,202.03,37.1846967]
[1731272715794,42.1321967,202.12,202.03,37.1846967]
[1731272716085,0.2,202.11,201.94,12.3795]
[1731272716289,0.1,202.11,201.95,23.776884]
[1731272716884,0.1,202.08,201.91,1.1320461]
[1731272717095,37.1846967,202.02,201.94,37.1846967]
[1731272717272,37.1846967,202.08,202.0,37.1846967]
[1731272717677,37.1846967,202.04,201.96,37.1846967]
[1731272717878,5.0482,202.09,201.91,23.776884]
[1731272718181,37.1846967,202.06,201.99,37.1846967]
[1731272718377,4.9482,202.09,201.9,0.1]
[1731272718568,4.9482,202.09,201.9,1.23210217]
[1731272718979,4.9482,202.09,202.03,37.1846967]
[1731272719186,4.9476,202.12,202.05,37.1846967]
[1731272719484,4.9476,202.12,202.06,37.1846967]
[1731272719681,4.9475,202.12,201.93,12.3799]
[1731272719889,0.1,202.11,201.91,1.1320461]
[1731272720091,0.1,202.09,201.91,1.1320461]
[1731272720279,0.2,202.09,201.91,1.1320461]
[1731272720482,0.1,202.06,201.91,1.1320461]
[1731272720694,0.1,202.04,201.91,1.1320461]
[1731272721001,20.12549,202.11,201.9,37.1846967]
[1731272721167,37.1846967,202.07,202.0,37.1846967]
[1731272721479,20.0,202.11,201.89,4.9531]
[1731272721480,0.22549,202.1,201.89,4.9531]
[1731272721689,20.1,202.11,201.89,4.9531]
[1731272721690,4.9482,202.09,201.89,17.336]
[1731272721983,24.9482,202.09,201.89,17.336]
[1731272722167,0.1,202.07,201.9,1.13210217]
[1731272722365,0.1,202.03,201.9,1.13210217]
[1731272722590,20.0,202.08,201.9,1.13210217]
[1731272722790,37.1846967,202.01,201.93,37.1846967]
[1731272723006,37.1846967,201.97,201.9,1.13210217]
[1731272723198,37.1846967,202.0,201.92,37.1846967]
[1731272723671,37.1846967,201.98,201.9,37.1846967]
[1731272723875,37.1846967,201.94,201.87,15.0122]
[1731272724080,37.1846967,201.9,201.82,49.5715967]
[1731272724480,37.1846967,201.92,201.84,37.1846967]
[1731272724682,37.1846967,201.88,201.8,37.1846967]
[1731272724888,37.2846967,202.0,201.79,15.0122]
[1731272724889,37.1846967,201.86,201.79,15.0122]
[1731272725094,37.1846967,201.88,201.8,37.1846967]
[1731272725274,20.2,201.99,201.82,37.1846967]
[1731272725479,37.1846967,201.87,201.79,15.0122]
[1731272725779,37.1846967,201.87,201.79,10.5122]
[1731272725989,42.1363967,201.95,201.86,37.1846967]
[1731272726178,37.1846967,201.95,201.88,37.1846967]
[1731272726501,4.9516,201.96,201.89,37.1846967]
[1731272726676,37.1846967,201.95,201.87,37.1846967]
[1731272726878,17.3284,201.98,201.8,17.3439]
[1731272727073,0.1,201.94,201.81,1.13260704]
[1731272727275,17.3284,201.98,201.81,1.13260704]
[1731272727503,4.951,201.98,201.81,1.13260704]
[1731272727700,4.9495,202.04,201.81,1.33260704]
[1731272727994,37.1846967,201.96,201.88,37.1846967]
[1731272728194,37.1846967,201.94,201.86,37.1846967]
[1731272728504,17.3232,202.04,201.88,37.1846967]
[1731272728505,37.1846967,201.96,201.88,37.1846967]
[1731272728684,37.1846967,201.94,201.86,37.1846967]
[1731272729380,37.1846967,201.94,201.86,42.1383967]
[1731272729604,11.84298463,201.93,201.86,42.1383967]